Cogmind - Beta 15 @@@ ROGUE MODE // 2025.07.20 @ 19:40:57 Player: Cracklepappy Result: Destroyed by P1-3LE(R) with Subdweller Laser Performance ------------- Evolutions (0) 0 Regions Visited (3) 600 Robots Destroyed (47) 235 Value Destroyed (939) 939 Prototype IDs (3) 60 Alien Tech Used (0) 0 Bonus (150) 150 TOTAL SCORE: 1984 Bonus ------- Follower Combat Kills 150 Cogmind --------- Core Integrity 0/250 Matter 191/300 Energy 200/200 System Corruption 4% Temperature Cool (6) Movement Rolling (130) Ox2 Location -10/Subcaves Parts ------- > --- POWER (1) -------- Subdweller Power Source > --- PROPULSION (2) --- Compact Wheel Compact Wheel > --- UTILITY (2) ------ Huge Storage Unit Experimental Sensor Array > --- WEAPON (2) ------- Subdweller Machine Gun Barrage Gun > --- INVENTORY (25) --- Subdweller Power Source Subdweller Monowheel Subdweller Monowheel Subdweller Monowheel Subdweller Monowheel Disposable Heat Sink Subdweller Optics Subdweller Optics Barrage Gun Battle Cannon SUBCON Basin (Full) Peak State ------------ > --- POWER ------------ Subdweller Power Source > --- PROPULSION ------- Compact Wheel Compact Wheel > --- UTILITY ---------- Huge Storage Unit Experimental Sensor Array > --- WEAPON ----------- Subdweller Machine Gun Barrage Gun > --- INVENTORY -------- Subdweller Power Source Subdweller Monowheel Subdweller Monowheel Subdweller Monowheel Subdweller Monowheel Disposable Heat Sink Subdweller Optics Subdweller Optics Barrage Gun Battle Cannon SUBCON Basin [Rating: 39] Favorites ----------- Power Ion Engine Engine Ion Engine Power Core Light Nuclear Core Propulsion Wheel Wheel Wheel Utility Huge Storage Unit Device Heat Sink Storage Huge Storage Unit Protection Improved Light Armor Plating Weapon Particle Cannon Energy Gun Small Laser Energy Cannon Particle Cannon Ballistic Gun Light Assault Rifle Ballistic Cannon Flak Cannon Special Weapon Mining Laser Build | -11 -10 -10 -10 ------- Run | Yrd Mat Min Sub Slots Evolved . | . . . . Power . | . . . . Propulsion . | . . . . Utility . | . . . . Weapon . | . . . . Parts Attached 49 | 8 13 4 24 Power 9 | 1 . 3 5 Engine 7 | 1 . 1 5 Core 2 | . . 2 . Reactor . | . . . . Propulsion 9 | 2 3 . 4 Treads . | . . . . Leg . | . . . . Wheel 9 | 2 3 . 4 Hover . | . . . . Flight . | . . . . Utility 15 | 3 5 1 6 Device 9 | 2 3 1 3 Storage 3 | 1 2 . . Processor . | . . . . Hackware . | . . . . Protection 3 | . . . 3 Artifact . | . . . . Weapon 16 | 2 5 . 9 Energy Gun 3 | 1 2 . . Energy Cannon 7 | . 2 . 5 Ballistic Gun 4 | 1 . . 3 Ballistic Cannon 1 | . . . 1 Launcher . | . . . . Special Weapon 1 | . 1 . . Impact Weapon . | . . . . Slashing Weapon . | . . . . Piercing Weapon . | . . . . Special Melee Weapon . | . . . . Unidentified Prototypes 1 | . . . 1 Parts Lost 8 | . 1 . 7 Power 2 | . . . 2 Propulsion 5 | . 1 . 4 Utility 1 | . . . 1 Weapon . | . . . . Highest Loss Streak 5 | . 1 . 5 To Critical Strikes . | . . . . Average Backups 21 | 4 19 25 23 Power 1 | . . 2 2 Propulsion 3 | 3 3 3 3 Utility 7 | . 6 10 7 Weapon 9 | 1 9 8 10 Tool/Special . | . . . . Unused Backups 38 | 2 8 6 22 Power 4 | . . 2 2 Propulsion 8 | 2 2 . 4 Utility 12 | . 2 2 8 Weapon 14 | . 4 2 8 Tool/Special . | . . . . Average Slot Usage (%) 99 | . 99 100 98 Engine 9 | . 14 1 10 Core 4 | . . 12 3 Wheel 27 | . 27 28 26 Device 9 | . 14 14 2 Storage 14 | . 14 14 14 Protection 4 | . . . 11 Energy Gun 1 | . 3 . . Energy Cannon 24 | . 21 28 23 Ballistic Gun 2 | . 1 . 3 Peak Build Rating 39 | 7 12 15 39 Average Rating 13 | 5 10 14 16 On Entrance 8 | . 7 12 15 Naked Turns . | . . . . Heaviest Build 102 | 13 94 94 102 Greatest Support 32 | 26 26 20 32 Greatest Overweight (x) 9 | . 4 4 9 Average Overweight (x) 3 | . 2 4 3 Largest Inventory Capacity 25 | 8 25 25 25 Average Capacity 22 | 7 20 25 25 Most Carried 25 | 8 25 25 25 Average Carried 22 | 4 19 24 24 Final Capacity 25 | 8 25 25 25 Final Carried 25 | 8 25 25 25 Class Distribution -------------------- 89% | Mutant 10% | Scavenger-Mutant Dominant Class ---------------- Mutant | -10/Materials Mutant | -10/Mines Mutant | -10/Subcaves Resources | -11 -10 -10 -10 ----------- Run | Yrd Mat Min Sub Matter Collected 1155 | 320 206 330 299 Remotely 95 | 10 85 . . Salvage Created 1563 | 216 566 496 285 Parts 111 | 24 38 32 17 Haulers Intercepted 2 | . 2 . . Recyclers Shooed . | . . . . Parts Field Recycled . | . . . . Retrieved Matter . | . . . . Parts Self-Destructed 13 | . . . 13 Prevented . | . . . . Kills | -11 -10 -10 -10 ------- Run | Yrd Mat Min Sub Combat Hostiles Destroyed 26 | . 10 9 7 Guns 6 | . 6 . . Cannons 19 | . 4 8 7 Classes Destroyed 11 | 3 6 1 1 Worker 4 | 2 1 1 . Builder 1 | . 1 . . Tunneler 7 | 7 . . . Hauler 2 | . 2 . . Recycler 3 | 1 1 1 . Operator 2 | . 2 . . Watcher 2 | . 2 . . Swarmer 8 | . 6 2 . Grunt 9 | . 4 5 . Sentry 2 | . . 2 . Subdweller 7 | . . . 7 Best Kill Streak 7 | 4 7 3 4 Combat Bots Only 6 | . 6 2 4 Max Kills in Single Turn 2 | 1 2 1 1 Gunslinging 1 | . 1 . . Exploded . | . . . . Melee . | . . . . Uniques/NPCs Destroyed . | . . . . Combat | -11 -10 -10 -10 -------- Run | Yrd Mat Min Sub Hostile Shots Fired 116 | . 31 19 66 Missed 31 | . 12 4 15 Hits 85 | . 19 15 51 Projectile 85 | . 19 15 51 Critical Strikes 2 | . . . 2 Damage Taken 1623 | . 162 149 1312 Core 270 | . 6 16 248 Absorbed by Shields . | . . . . Core Remaining (%) 100 | 100 . . . Volleys Fired 195 | 40 49 19 87 Largest 2 | 2 2 2 2 Hottest 148 | 60 136 136 148 Shots Fired 332 | 76 95 38 123 Gun 132 | 76 44 . 12 Cannon 198 | . 49 38 111 Launcher . | . . . . Special 2 | . 2 . . Kinetic 77 | 40 15 . 22 Thermal 237 | 36 62 38 101 Explosive . | . . . . Electromagnetic 18 | . 18 . . Robot Hit Streak 14 | 7 7 6 14 Robot Miss Streak 5 | 2 3 3 5 Penetration Max . | . . . . Secondary Targets 3 | . 3 . . Max Gunslinging Chain 1 | . 1 . . Shots Hit Robots 176 | 49 50 23 54 Core Hits 67 | 16 25 11 15 Critical Kills . | . . . . Critical Parts Destroyed . | . . . . Critical Strikes . | . . . . Melee Attacks . | . . . . Impact . | . . . . Slashing . | . . . . Piercing . | . . . . Sneak Attacks . | . . . . Combat Hostiles . | . . . . Follow-up Attacks . | . . . . Damage Inflicted 2859 | 467 762 536 1094 Guns 907 | 467 287 . 153 Cannons 1952 | . 475 536 941 Explosions . | . . . . Melee . | . . . . Ramming . | . . . . Kinetic 584 | 225 87 . 272 Thermal 2140 | 242 540 536 822 Explosive . | . . . . Electromagnetic 135 | . 135 . . Impact . | . . . . Slashing . | . . . . Piercing . | . . . . Highest Corruption 4 | . 4 4 4 Average Corruption 3 | . 3 4 4 Corruption Purged . | . . . . Corruption Blocked . | . . . . Effects 79 | . 15 23 41 Message Errors 17 | . 4 4 9 Matter Fused 21 | . 3 6 12 Heat Flow Errors 10 | . 2 4 4 Energy Discharges 11 | . 3 4 4 Data Loss (minor) 13 | . 1 3 9 Data Loss (major) 3 | . . 2 1 Misfires 2 | . 2 . . Weapon Failures 2 | . . . 2 Overload Shots . | . . . . Overflow Damage 12 | . 10 2 . Projectiles 12 | . 10 2 . Explosions . | . . . . Melee . | . . . . Knockbacks 3 | . . . 3 Impact . | . . . . Kinetic 3 | . . . 3 Secondary . | . . . . Self-Inflicted Damage . | . . . . Shots . | . . . . Rammed . | . . . . Targets Rammed . | . . . . Kicked . | . . . . Crushed . | . . . . Highest Temperature 327 | 60 294 207 327 Average Temperature 68 | 22 64 72 103 Received Heat Transfer 549 | . 21 45 483 Effects 1 | . . 1 . Energy Bleed 1 | . . 1 . Siege Activations . | . . . . Martial Activations . | . . . . Shielding Activations . | . . . . Robots Disrupted . | . . . . Combat Hostiles . | . . . . Robots Corrupted . | . . . . Combat Hostiles . | . . . . Parts Fried . | . . . . Impact Corruptions . | . . . . Robots Melted 1 | . . 1 . Combat Hostiles 1 | . . 1 . Parts Melted 2 | . . 1 1 Heat Transferred 3771 | 550 1001 962 1258 Parts Sabotaged . | . . . . Parts Stolen . | . . . . Parts Stripped . | . . . . Power Chain Reactions . | . . . . Alert | -11 -10 -10 -10 ------- Run | Yrd Mat Min Sub Maximum Alert Level . | . . . . Low Security (%) 100 | 100 100 100 . Level 1 . | . . . . Level 2 . | . . . . Level 3 . | . . . . Level 4 . | . . . . Level 5 . | . . . . High Security . | . . . . Max Security . | . . . . Peak Influence 127 | 10 127 73 . Initial 3 | . . 3 . Average 25 | 2 35 17 . Influence Increases 776 | 50 353 299 74 Destroy 0b10 Robot/C 460 | . 200 220 40 Destroy 0b10 Robot/NC 105 | 50 45 10 . Destroy Leader 78 | . 48 30 . Allied During Kill 28 | . . 24 4 Successful Hack 28 | . 28 . . Select Force Hacks 30 | . 30 . . Destroy Structure 2 | . 2 . . Lose Combat Pursuer 45 | . . 15 30 Influence Decreases 776 | 50 345 307 74 Entered New Map 5 | . . 5 . Time Decay 741 | 50 335 282 74 Lost Part 10 | . 10 . . Lost Ally 20 | . . 20 . Squads Dispatched 4 | . 3 1 . Investigation 3 | . 2 1 . Extermination . | . . . . Reinforcement 1 | . 1 . . Assault . | . . . . Garrison . | . . . . Intercept . | . . . . Searches Triggered . | . . . . Construction Impeded . | . . . . Haulers Reinforced . | . . . . Active Scanning Responses . | . . . . Cargo Convoy Interrupts . | . . . . Stealth | -11 -10 -10 -10 --------- Run | Yrd Mat Min Sub Distress Signals 1 | . 1 . . Communications Jammed . | . . . . Distress Signals . | . . . . Times Spotted 48 | . 23 12 13 Peak Tracking Total 4 | . 4 3 3 Tactical Retreats 2 | . . 1 1 Traps | -11 -10 -10 -10 ------- Run | Yrd Mat Min Sub Traps Triggered 6 | . 3 . 3 Indirectly . | . . . . Trap Hack Attempts . | . . . . Triggered . | . . . . Disarmed . | . . . . Reprogrammed . | . . . . Reused . | . . . . Traps Extracted . | . . . . Installed . | . . . . Triggered . | . . . . Machines | -11 -10 -10 -10 ---------- Run | Yrd Mat Min Sub Machines Disabled 1 | . 1 . . Max in Single Turn 1 | . 1 . . Machines Repaired . | . . . . Machines Dismantled . | . . . . Machines Sabotaged . | . . . . Overloaded Fab Kills . | . . . . Hacking | -11 -10 -10 -10 --------- Run | Yrd Mat Min Sub Machines Accessed 11 | . 8 1 2 Terminals 7 | . 7 . . Fabricators . | . . . . Repair Stations . | . . . . Recycling Units 1 | . 1 . . Scanalyzers . | . . . . Garrison Access . | . . . . Total Hacks 23 | . 20 1 2 Successful 12 | . 9 1 2 Failed 11 | . 11 . . Catastrophic 1 | . 1 . . Database Lockouts . | . . . . Manual 17 | . 17 . . Terminals 18 | . 18 . . Fabricators . | . . . . Repair Stations . | . . . . Recycling Units 2 | . 2 . . Scanalyzers . | . . . . Garrison Access . | . . . . Terminal Hacks 5 | . 2 1 2 Robot Schematic 1 | . 1 . . Prototype ID Bank 1 | . 1 . . Open Door 2 | . . 1 1 Release Object 1 | . . . 1 Fabricator Hacks . | . . . . Repair Station Hacks . | . . . . Recycling Unit Hacks . | . . . . Scanalyzer . | . . . . Garrison Access Hacks . | . . . . Unauthorized Hacks 7 | . 7 . . Terminals 6 | . 6 . . Operators 1 | . 1 . . Skim 5 | . 5 . . Fabricators . | . . . . Repair Stations . | . . . . Recycling Units 1 | . 1 . . Tunnel 1 | . 1 . . Scanalyzers . | . . . . Garrison Access . | . . . . Data Cores Recovered . | . . . . Used . | . . . . Hacking Detections 8 | . 8 . . Full Trace Events 1 | . 1 . . Feedback Events . | . . . . Feedback Blocked . | . . . . Robot Schematics Acquired 1 | . 1 . . Robots Built . | . . . . Authchips . | . . . . Time . | . . . . Total Robot Build Rating . | . . . . Part Schematics Acquired . | . . . . Parts Built . | . . . . Authchips . | . . . . Time . | . . . . Total Part Build Rating . | . . . . Parts Repaired . | . . . . Time . | . . . . Parts Recycled . | . . . . Recycled Matter . | . . . . Retrieved Matter . | . . . . Retrieved Components . | . . . . Parts Scanalyzed . | . . . . Part Schematics Acquired . | . . . . Parts Damaged . | . . . . Bothacking | -11 -10 -10 -10 ------------ Run | Yrd Mat Min Sub Used RIF Installer . | . . . . Robots Hacked . | . . . . Non-combat . | . . . . Combat . | . . . . Robot Hacks Applied . | . . . . Relay Couplers Released . | . . . . Fabnet Peak Effective % . | . . . . Robots Rewired . | . . . . Allies Hacked . | . . . . Hacks Repelled . | . . . . Allies | -11 -10 -10 -10 -------- Run | Yrd Mat Min Sub Total Allies 3 | . . 3 . Largest Group 3 | . . 3 2 Highest-Rated Group 40 | . . 40 24 Highest-Rated Ally 16 | . . 16 16 Total Orders . | . . . . Ally Attacks 60 | . . 16 44 Total Damage 527 | . . 178 349 Kills 6 | . . 2 4 Allies Corrupted . | . . . . Allies Melted . | . . . . Intel | -11 -10 -10 -10 ------- Run | Yrd Mat Min Sub Active Infowar (turns) 56 | 20 . . 36 Sensors 36 | . . . 36 Seismic 20 | 20 . . . Robot Analysis Total . | . . . . Derelict Logs Recovered 2 | . . 1 1 Drone Launches . | . . . . Drone Recoveries . | . . . . Exploration | -11 -10 -10 -10 ------------- Run | Yrd Mat Min Sub Turns Passed 4771 | 276 1445 1077 1973 Spaces Moved 2760 | 163 783 683 1131 Core 2 | 2 . . . Treads . | . . . . Legs . | . . . . Wheels 2758 | 161 783 683 1131 Hover . | . . . . Flight . | . . . . Fastest Speed 50 | 50 90 140 130 Average Speed 131 | 89 114 140 144 Slowest Speed 215 | 90 140 140 215 Overloaded Moves . | . . . . Propulsion Burnouts . | . . . . Robots Hopped . | . . . . Potential Cave-ins . | . . . . Cave-ins Triggered . | . . . . Exploration Rate (%) 68 | 7 100 98 67 Regions Visited 3 Branch Regions 2 Pre-discovered Areas 2 | . 2 . . Known Exits Taken 1 | . . 1 . Unknown Exits Taken 2 | 1 1 . . Scrap Searched 6 | . . . 6 Spaces Dug 1 | . 1 . . Terrain Destroyed 8 | . 2 . 6 Melee . | . . . . Projectile 8 | . 2 . 6 AOE . | . . . . Terrain Rammed . | . . . . Walls Destroyed . | . . . . Machines Disabled . | . . . . Actions | -11 -10 -10 -10 --------- Run | Yrd Mat Min Sub Total 3585 | 222 1240 775 1348 Wait 438 | . 340 47 51 Move 2757 | 162 782 682 1131 Hop . | . . . . Pick Up 75 | 9 33 10 23 Fast Attach 9 | 8 1 . . Attach 11 | . 1 . 10 Detach 1 | 1 . . . Swap 35 | . 15 4 16 Drop 64 | 2 19 13 30 Fire 195 | 40 49 19 87 Melee . | . . . . Ram . | . . . . Kick . | . . . . Crush . | . . . . Escape Stasis . | . . . . Rewire . | . . . . Trap . | . . . . Miscellaneous . | . . . . Route ------- -11/Scrapyard -10/Materials (discovered 5 exits: *Mat x3 / *Min / *Sub) -10/Mines (discovered 3 exits: *Mat x2 / *Sub) -10/Subcaves (discovered 2 exits: [*Mat x2]) History --------- Turn | Location | Event 12 | -11/Scrapyard | Discovered new exit (range 16) 277 | -11/Scrapyard | Entered Materials 311 | -10/Materials | Build established: Mutant 470 | -10/Materials | Discovered new exit (range 11) 576 | -10/Materials | Discovered new exit (range 15) 732 | -10/Materials | Discovered new exit (range 15) 790 | -10/Materials | Discovered new exit (range 6) 1066 | -10/Materials | Discovered new exit (range 16) 1342 | -10/Materials | Learned location of 1 exit from Recycling 1381 | -10/Materials | Learned location of 2 exits from Mines 1398 | -10/Materials | Learned Materials emergency access door positions 1425 | -10/Materials | Learned Storage stockpile data 1463 | -10/Materials | Learned location of 2 exits from Materials 1722 | -10/Materials | Entered Mines 1723 | -10/Mines | Identified exit to Subcaves 1724 | -10/Mines | Identified exit to Materials 1883 | -10/Mines | Assisted by bots powering up and referring to "LRC-V3" 1914 | -10/Mines | Found a damaged Exp. Sensor Array with a note attached 1917 | -10/Mines | Found Prototype Device 1979 | -10/Mines | Received a Rocket Launcher from a helpful Derelict 2280 | -10/Mines | Learned Materials trap positions 2303 | -10/Mines | Met a Derelict shopkeep closing up shop 2799 | -10/Mines | Entered Subcaves 2799 | -10/Subcaves | Accompanied by 2 allies 2800 | -10/Subcaves | Approached by a straggling Scientist 2877 | -10/Subcaves | A swath of the cavern ceiling suddenly collapsed 3145 | -10/Subcaves | Learned location of 1 exit from Materials 3419 | -10/Subcaves | Discovered new exit (range 11) 3448 | -10/Subcaves | Build established: Scavenger-Mutant 3541 | -10/Subcaves | Core integrity fell below 50% 3563 | -10/Subcaves | Lost 5 parts (2p2n1u) 3572 | -10/Subcaves | Core integrity fell below 20% 3760 | -10/Subcaves | Shifting Twisted Machinery released Flamer 3763 | -10/Subcaves | Shifting Twisted Machinery released Sub. Machine Gun 3772 | -10/Subcaves | A swath of the cavern ceiling suddenly collapsed 3795 | -10/Subcaves | Build established: Mutant 4561 | -10/Subcaves | Shifting Twisted Machinery released Sub. Power Source 4569 | -10/Subcaves | Shifting Twisted Machinery released Barrage Gun 4611 | -10/Subcaves | Discovered new exit (range 8) 4667 | -10/Subcaves | Found SUBCON Basin 4736 | -10/Subcaves | Identified Exp. Sensor Array 4772 | -10/Subcaves | Destroyed by P1-3LE(R) with Subdweller Laser Last Messages --------------- Collection purity confirmed 100%... Ejecting SUBCON Basin... Delivery behind schedule, handle with care! 04647_ Dropped Battle Cannon. 04647_ Dropped Sub. Beam Cannon. 04648_ Dropped Beam Cannon. 04649_ Dropped Hacking Suite. 04649_ Dropped Com. Matter Pod. 04650_ Dropped Lrg. Storage Unit. 04650_ Dropped Mining Laser. 04652_ Dropped Particle Cannon. 04659_ Dropped Rocket Launcher. 04660_ Dropped Beam Cannon. 04660_ Dropped Ion Engine. 04667_ System corrupted: Matter fused (-9). 04667_ Acquired SUBCON Basin. 04718_ System corrupted: Component data lost. 04736_ System corrupted: Matter fused (-7). 04736_ Identified Exp. Sensor Array. 04755_ System corrupted: Component data lost. Map ----- +----------------------------------------------------+ | | | | | | | | | ?????????????????????????????????????????????????? | | ?????????????????????????????????????????????????? | | ????????????????????########?????????????????????? | | ????????????????????#""""""#?????????????????????? | | ????????????????????#"X""""#?????????????????????? | | ????????????????????#"! !]!#?????????????????????? | | ????????????????????#"]]]]!#?????????????????????? | | ????????????????????#""""!"#?????????????????????? | | ????????????????????#####|##?????????????????????? | | ??????????????????????#""]"#?????????????????????? | | ?????????????????????## ]]X#?????????????????????? | | ????????????????????## *###????????????????????? | | ????????????????????# #### #????????????????????? | | ???????????????????### ## #????????????????????? | | ???????????????????# ### #######???###?????###? | | ???????????????????# # # ##?## #??#### ## | | ???????????????????# ### #### # | | ???????????????????# ## ## " # | | ???????????????????### # # ### "## # | | ?????????????????????## R ### ## ##" | | ???????????????????? < ### ### ### | | ?????????????????? #@ ### ## " ##?# " | | ???????????????? # #### ### ##??# """" | | ??????????????? ##?##?## ##?# "#???# " | | ??????????????????????# ##?## ##??# " " | | ??????????????????????# #### """#??# "" " | | ??????????????????????## """ #?# | | ???????????????????????# "## "#?# | | ???????????????????????# ## ##?" #?? | | ???????????????????????########## ##?? ##?# ## | | ????????????????????????????????####???##??####### | | ?????????????????????????????????????????????????# | | ?????????????????????????????????????????????????# | | ?????????????????????????????????????????????????? | | ?????????????????????????????????????????????????? | | ?????????????????????????????????????????????????? | | ?????????????????????????????????????????????????? | | ?????????????????????????????????????????????????? | | ?????????????????????????????????????????????????? | | ?????????????????????????????????????????????????? | | ?????????????????????????????????????????????????? | | ?????????????????????????????????????????????????? | | ?????????????????????????????????????????????????? | | ?????????????????????????????????????????????????? | | ?????????????????????????????????????????????????? | | ?????????????????????????????????????????????????? | +----------------------------------------------------+ Best States ------------- Heat Dissipation 35 Coolant Potential 50 Energy Generation 15 Energy Capacity 265 Matter Stores 300 Matter Capacity 300 Sight Range 16 Robot Scan Range 20 Terrain Scan Density 10 Armor Coverage 150 Evasion (%) 42 Item Schematics ----------------- None Robot Schematics ------------------ M-13 Machinist | -10/Materials | Hacked Fabricated ------------ Nothing Repaired ---------- Nothing Alien Tech Used ----------------- None Achievements -------------- None Challenges ------------ None Game ------ Seed CarbideThiefKit Manual? 0 Play Time 00:33:56 Cumulative 1093.3 hours Start 2025.07.20 @ 19:09:37 End 2025.07.20 @ 19:40:57 Sessions 1 Manual Loads 0 Difficulty Rogue Special Mode None Game No. 542 Rogue 542 Adventurer 0 Explorer 0 Win Type - Total 23 Types 10/4/3/0/1/1/2/2/0/0 Lore% 90 Gallery% 89 Achievement% 83 Wizard Run 0 Options --------- Layout 0 ASCII 0 Keyboard 0 Movement Numpad Keybinds 0 Fullscreen 2 Font 24/Smallcaps Map View 76x50 Zoom Use 0% Tactical HUD 1 Map Filters NONE Filters SHIFT_HUE(315) Steam 1 RUN: 1b8f7162-c071-4abf-a71e-261531babf79